bitfinex/quotes_BTCUSD_20251004
["timestamp","ask_amount","ask_price","bid_price","bid_amount"]
[1759599470281,0.00312125,121790.0,121780.0,5.99902369]
[1759599471067,0.00012125,121790.0,121780.0,5.99802369]
[1759599471264,0.00012125,121790.0,121780.0,5.99202369]
[1759599471471,0.00112125,121790.0,121780.0,6.01202369]
[1759599475542,0.00112125,121790.0,121780.0,6.01194369]
[1759599479830,0.00112125,121790.0,121780.0,5.92662369]
[1759599480014,0.00112125,121790.0,121780.0,6.01194369]
[1759599480421,0.00112125,121790.0,121780.0,5.92662369]
[1759599480626,0.00112125,121790.0,121780.0,5.69526369]
[1759599480830,0.00112125,121790.0,121780.0,6.01194369]
[1759599490683,0.00112125,121790.0,121780.0,5.92662369]
[1759599490884,0.00112125,121790.0,121780.0,6.01194369]
[1759599493270,0.00019742,121790.0,121780.0,6.01194369]
[1759599494298,0.00019742,121790.0,121780.0,5.69526369]
[1759599494453,0.00019742,121790.0,121780.0,6.01194369]
[1759599496559,0.00019742,121790.0,121780.0,5.98730268]
[1759599499060,0.00019742,121790.0,121780.0,5.66558268]
[1759599499303,0.00019742,121790.0,121780.0,5.58246062]
[1759599499513,0.16441451,121790.0,121780.0,0.45355005]
[1759599499725,0.00019742,121790.0,121780.0,0.34491005]
[1759599500166,0.00019742,121790.0,121780.0,0.50914062]
[1759599500374,0.00019742,121790.0,121780.0,0.48914062]
[1759599500585,0.16420369,121800.0,121780.0,0.48214062]
[1759599500790,0.01,121790.0,121780.0,0.25069868]
[1759599500980,0.01,121790.0,121780.0,0.48205868]
[1759599501421,0.01,121790.0,121780.0,0.48328873]
[1759599502190,0.006,121790.0,121780.0,0.48328873]
[1759599502457,0.24732575,121800.0,121780.0,0.48228873]
[1759599502658,0.25132575,121800.0,121780.0,0.16537868]
[1759599502869,0.25232575,121800.0,121790.0,0.23136]
[1759599503320,0.24732575,121800.0,121790.0,0.23136]
[1759599503806,0.25132575,121800.0,121790.0,0.23136]
[1759599504024,0.24732575,121800.0,121790.0,0.23136]
[1759599504450,0.25532575,121800.0,121790.0,0.23236]
[1759599504965,0.26232575,121800.0,121790.0,0.23236]
[1759599505359,0.26232575,121800.0,121790.0,0.001]
[1759599505554,0.26232575,121800.0,121790.0,0.23236]
[1759599505731,0.29247765,121800.0,121790.0,0.001]
[1759599505942,0.12827396,121800.0,121790.0,0.23236]
[1759599506146,0.29247757,121800.0,121790.0,0.23236]
[1759599506310,0.12827396,121800.0,121790.0,0.23236]
[1759599506933,0.29247757,121800.0,121790.0,0.23236]
[1759599507336,0.12827396,121800.0,121790.0,0.23236]
[1759599507548,0.29247757,121800.0,121790.0,0.23236]
[1759599507925,0.29247757,121800.0,121790.0,0.23338495]
[1759599515191,0.12827396,121800.0,121790.0,0.23338495]
[1759599515923,0.29247757,121800.0,121790.0,0.23338495]
[1759599523005,0.29247757,121800.0,121790.0,0.23546495]
[1759599523641,0.29247757,121800.0,121790.0,0.23338495]
[1759599524249,0.12827396,121800.0,121790.0,0.23338495]
[1759599524999,0.29247757,121800.0,121790.0,0.23338495]
[1759599526403,0.12827396,121800.0,121790.0,0.23338495]
[1759599527071,0.12827396,121800.0,121790.0,0.23546495]
[1759599527415,0.29247757,121800.0,121790.0,0.23338495]
[1759599529654,0.12827396,121800.0,121790.0,0.23859495]
[1759599531231,0.29247757,121800.0,121790.0,0.23859495]
[1759599532487,0.12827396,121800.0,121790.0,0.23859495]
[1759599533354,0.29247757,121800.0,121790.0,0.23859495]
[1759599534439,0.12827396,121800.0,121790.0,0.23859495]
[1759599534961,0.29247757,121800.0,121790.0,0.23859495]
[1759599536218,0.12827396,121800.0,121790.0,0.23859495]
[1759599536672,0.29247757,121800.0,121790.0,0.23859495]
[1759599537965,0.12827396,121800.0,121790.0,0.23859495]
[1759599540648,0.29247757,121800.0,121790.0,0.23859495]
[1759599541661,0.29247757,121800.0,121790.0,0.00202495]
[1759599541941,0.29247757,121800.0,121790.0,0.23338495]
[1759599542399,0.29247757,121800.0,121790.0,0.00202495]
[1759599542623,0.29247757,121800.0,121790.0,0.23338495]
[1759599543105,0.29247757,121800.0,121790.0,0.00202495]
[1759599543337,0.29247757,121800.0,121790.0,0.23338495]
[1759599546387,0.29247757,121800.0,121790.0,0.00202495]
[1759599546587,0.29247757,121800.0,121790.0,0.23338495]
[1759599546797,0.29247757,121800.0,121790.0,0.00202495]
[1759599547025,0.29247757,121800.0,121790.0,0.23338495]
[1759599547247,0.29247757,121800.0,121790.0,0.00202495]
[1759599547467,0.36770993,121800.0,121790.0,0.00202495]
[1759599547713,0.295764,121800.0,121790.0,0.00202495]
[1759599547887,0.97546127,121800.0,121790.0,0.00202495]
[1759599551813,0.527124,121800.0,121790.0,0.00202495]
[1759599552016,0.97546127,121800.0,121790.0,0.00202495]
[1759599554582,0.527124,121800.0,121790.0,0.00202495]
[1759599554855,0.97546127,121800.0,121790.0,0.00202495]
[1759599555613,1.05967534,121800.0,121790.0,0.00202495]
[1759599556214,0.97546127,121800.0,121790.0,0.00202495]
[1759599557898,1.23826127,121800.0,121790.0,0.00202495]
[1759599562398,1.29442993,121800.0,121790.0,0.00202495]
[1759599570613,1.29446993,121800.0,121790.0,0.00202495]
[1759599571446,1.06306993,121800.0,121790.0,0.00202495]
[1759599571657,1.29446993,121800.0,121790.0,0.00202495]
[1759599573473,1.06306993,121800.0,121790.0,0.00202495]
[1759599573685,0.789964,121800.0,121790.0,0.00202495]
[1759599573886,1.29446993,121800.0,121790.0,0.00202495]
[1759599574736,1.378684,121800.0,121790.0,0.00202495]
[1759599575236,1.03887492,121790.0,121780.0,0.00014811]
[1759599575464,1.12199698,121790.0,121780.0,0.00014811]
[1759599576025,1.35339698,121790.0,121780.0,0.00014811]
[1759599576452,1.37804914,121790.0,121780.0,0.00014811]
[1759599576662,1.38704914,121790.0,121780.0,0.00114811]
[1759599577516,1.15564914,121790.0,121780.0,0.00114811]
[1759599577696,1.38704914,121790.0,121780.0,0.00114811]
[1759599578495,1.15564914,121790.0,121780.0,0.00114811]
[1759599578699,1.38704914,121790.0,121780.0,0.00114811]
[1759599579430,1.47126321,121790.0,121780.0,0.00114811]
[1759599580941,1.47126321,121790.0,121780.0,0.00135317]
[1759599585289,1.23986321,121790.0,121780.0,0.00135317]
[1759599585462,1.47126321,121790.0,121780.0,0.00135317]
[1759599585864,1.38704914,121790.0,121780.0,0.00135317]
[1759599590062,0.88254321,121790.0,121780.0,0.00135317]
[1759599590242,1.38704914,121790.0,121780.0,0.00135317]
[1759599592053,0.65114321,121790.0,121780.0,0.00135317]
[1759599592255,0.88254321,121790.0,121780.0,0.00650317]
[1759599592674,0.88254321,121790.0,121780.0,0.00135317]
[1759599592879,0.31114321,121790.0,121780.0,0.00345317]
[1759599593081,0.54254321,121790.0,121780.0,0.00650317]
[1759599593641,0.54254321,121790.0,121780.0,0.00345317]
[1759599593850,0.54254321,121790.0,121780.0,0.00135317]
[1759599601427,0.54254321,121790.0,121780.0,0.00662317]
[1759599602064,0.54254321,121790.0,121780.0,0.00342317]
[1759599602273,0.54254321,121790.0,121780.0,0.00135317]
[1759599602767,0.54254321,121790.0,121780.0,0.00662317]
[1759599602998,0.54254321,121790.0,121780.0,0.00135317]
[1759599607658,0.54254321,121790.0,121780.0,0.00662317]
[1759599608049,0.54254321,121790.0,121780.0,0.00135317]
[1759599610581,0.54254321,121790.0,121780.0,0.00342317]
[1759599610773,0.54254321,121790.0,121780.0,0.00662317]
[1759599611390,0.54254321,121790.0,121780.0,0.00135317]
[1759599615497,0.54254321,121790.0,121780.0,0.00342317]
[1759599615978,0.54254321,121790.0,121780.0,0.00135317]
[1759599619357,0.31114321,121790.0,121780.0,0.00342317]
[1759599619579,0.11677422,121790.0,121780.0,0.17085374]
[1759599619790,0.009,121790.0,121780.0,0.40225374]
[1759599621807,0.009,121790.0,121780.0,0.17085374]
[1759599622020,0.009,121790.0,121780.0,0.48761374]
[1759599631061,0.009,121790.0,121780.0,0.17085374]
[1759599631270,0.009,121790.0,121780.0,0.48757374]
[1759599640319,0.009,121790.0,121780.0,0.17085374]
[1759599640550,0.009,121790.0,121780.0,0.48757374]
[1759599655802,0.009,121790.0,121780.0,0.17085374]
[1759599656029,0.009,121790.0,121780.0,0.48757374]
[1759599656669,0.009,121790.0,121780.0,0.40221374]
[1759599657090,0.009,121790.0,121780.0,0.17085374]
[1759599657290,0.009,121790.0,121780.0,0.48757374]
[1759599657992,0.009,121790.0,121780.0,0.17085374]
[1759599658211,0.009,121790.0,121780.0,0.48757374]
[1759599660524,0.009,121790.0,121780.0,0.17085374]
[1759599660879,0.009,121790.0,121780.0,0.48757374]
[1759599664565,0.17321709,121790.0,121780.0,0.00662317]
[1759599664981,0.17321709,121790.0,121780.0,0.32334317]
[1759599667069,0.17321709,121790.0,121780.0,0.00662317]
[1759599667232,0.17321709,121790.0,121780.0,0.32334317]
[1759599667632,0.17321709,121790.0,121780.0,0.00662317]
[1759599667842,0.17321709,121790.0,121780.0,0.31807317]
[1759599668063,0.17321709,121790.0,121780.0,0.00135317]
[1759599668064,0.85966581,121790.0,121780.0,0.00135317]
[1759599668259,0.85966581,121790.0,121780.0,1e-08]
[1759599668260,0.95966581,121790.0,121780.0,1e-08]
[1759599668659,0.98466581,121790.0,121780.0,1e-08]
[1759599669109,0.97966581,121790.0,121780.0,1e-08]
[1759599669522,0.97566581,121790.0,121780.0,1e-08]
[1759599669757,0.92116816,121790.0,121780.0,1e-08]
[1759599670447,0.93416816,121790.0,121780.0,1e-08]
[1759599670701,0.4859411,121790.0,121780.0,1e-08]
[1759599670901,0.16425755,121760.0,121750.0,0.15]
[1759599671137,0.28023097,121760.0,121750.0,0.15049416]
[1759599671768,0.75311483,121760.0,121750.0,0.15049416]
[1759599671999,0.76125503,121760.0,121750.0,0.15049416]
[1759599672222,0.76525503,121760.0,121750.0,0.15249416]
[1759599672437,0.76825503,121760.0,121750.0,0.15249416]
[1759599673134,0.32002797,121760.0,121750.0,0.15249416]
[1759599673706,0.38213574,121760.0,121750.0,0.15249416]
[1759599676537,0.38213574,121760.0,121750.0,0.15310948]
[1759599677172,0.35747894,121760.0,121750.0,0.15310948]
[1759599679701,0.62027894,121760.0,121750.0,0.15310948]
[1759599680821,0.34933874,121760.0,121750.0,0.15310948]
[1759599681035,0.31648738,121760.0,121750.0,0.15823948]
[1759599681248,0.28453151,121760.0,121750.0,0.15823948]
[1759599691305,0.28453151,121760.0,121750.0,0.15611948]
[1759599691504,0.28453151,121760.0,121750.0,0.15310948]
[1759599692360,0.28453151,121760.0,121750.0,0.15805948]
[1759599692841,0.28453151,121760.0,121750.0,0.15511948]
[1759599693932,0.28453151,121760.0,121750.0,0.15310948]
[1759599695425,0.30729089,121760.0,121750.0,0.15310948]
[1759599703436,0.81192096,121760.0,121750.0,0.15310948]
[1759599705930,0.30729089,121760.0,121750.0,0.15310948]
[1759599706129,0.53945089,121760.0,121750.0,0.15310948]
[1759599706441,1.04408096,121760.0,121750.0,0.15310948]
[1759599706638,0.78916158,121760.0,121750.0,0.15310948]
[1759599706843,0.28453151,121760.0,121750.0,0.15310948]
[1759599708011,0.78916158,121760.0,121750.0,0.15310948]
[1759599709902,1.02128158,121760.0,121750.0,0.15310948]
[1759599714537,1.02124158,121760.0,121750.0,0.15310948]
[1759599714962,0.51661151,121760.0,121750.0,0.15310948]
[1759599715206,1.02124158,121760.0,121750.0,0.15310948]
[1759599719344,0.51661151,121760.0,121750.0,0.15310948]
[1759599723595,0.60082558,121760.0,121750.0,0.15310948]
[1759599724840,1.10545565,121760.0,121750.0,0.15310948]
[1759599727233,1.36825565,121760.0,121750.0,0.15310948]
[1759599727846,1.70825565,121760.0,121750.0,0.15310948]
[1759599728567,1.73291553,121760.0,121750.0,0.15310948]
[1759599729240,1.74060847,121760.0,121750.0,0.15310948]
[1759599729448,1.47780847,121760.0,121750.0,0.15310948]
[1759599729648,1.47080847,121760.0,121750.0,0.15110948]
[1759599729856,1.48880847,121760.0,121750.0,0.15310948]
[1759599730278,1.48080847,121760.0,121750.0,0.15110948]
[1759599730716,1.49780847,121760.0,121750.0,0.15410948]
[1759599731667,1.26572847,121760.0,121750.0,0.15410948]
[1759599731899,1.58320847,121760.0,121750.0,0.15410948]
[1759599734398,1.57551553,121760.0,121750.0,0.15410948]
[1759599735361,1.25803553,121760.0,121750.0,0.15410948]
[1759599735593,1.57551553,121760.0,121750.0,0.15410948]
[1759599736336,1.49007553,121760.0,121750.0,0.15410948]
[1759599736532,1.25803553,121760.0,121750.0,0.15410948]
[1759599736737,1.49007553,121760.0,121750.0,0.15410948]
[1759599737355,0.98544546,121760.0,121750.0,0.15410948]
[1759599737560,1.49007553,121760.0,121750.0,0.15410948]
[1759599739160,1.14774353,121750.0,121740.0,0.0005]
[1759599739319,1.46290559,121750.0,121740.0,0.00064804]
[1759599739916,1.48756671,121750.0,121740.0,0.00064804]
[1759599740352,1.49956671,121750.0,121740.0,0.00264804]
[1759599740552,1.50456671,121750.0,121740.0,0.00264804]
[1759599744380,0.99993664,121750.0,121740.0,0.00264804]
[1759599744970,0.99993664,121750.0,121740.0,0.0028532]
[1759599745267,1.26273664,121750.0,121740.0,0.0028532]
[1759599753549,1.71151931,121750.0,121740.0,0.0028532]
[1759599757783,1.71155931,121750.0,121740.0,0.0028532]
[1759599758007,1.79577338,121750.0,121740.0,0.0028532]
[1759599758479,1.34699071,121750.0,121740.0,0.0028532]
[1759599758685,1.79577338,121750.0,121740.0,0.0028532]
[1759599760379,1.34699071,121750.0,121740.0,0.0028532]
[1759599760594,0.99997664,121750.0,121740.0,0.0028532]
[1759599761506,1.44875931,121750.0,121740.0,0.0028532]
[1759599762164,1.44875931,121750.0,121740.0,0.0048732]
[1759599762370,1.44875931,121750.0,121740.0,0.0028532]
[1759599762588,1.53297338,121750.0,121740.0,0.0028532]
[1759599763908,1.08419071,121750.0,121740.0,0.0028532]
[1759599764624,0.85215071,121750.0,121740.0,0.0028532]
[1759599764857,1.08399071,121750.0,121740.0,0.0028532]
[1759599765963,1.34679071,121750.0,121740.0,0.0028532]
[1759599766632,1.11495071,121750.0,121740.0,0.0079132]
[1759599766841,0.99977664,121750.0,121740.0,0.0079132]
[1759599767322,0.99977664,121750.0,121740.0,0.0028532]
[1759599779741,1.44855931,121750.0,121740.0,0.0028532]
[1759599780789,0.99977664,121750.0,121740.0,0.0028532]
[1759599781001,1.53277338,121750.0,121740.0,0.0028532]
[1759599781213,1.5404695,121750.0,121740.0,0.0028532]
[1759599781416,1.53277338,121750.0,121740.0,0.0028532]
[1759599781862,1.54046954,121750.0,121740.0,0.0028532]
[1759599782072,1.65586215,121750.0,121740.0,0.0028532]
[1759599782281,1.64046954,121750.0,121740.0,0.0028532]
[1759599782499,0.16429803,121730.0,121720.0,0.0002]
[1759599782716,0.16429803,121730.0,121720.0,0.00032125]
[1759599782717,0.85501474,121730.0,121720.0,0.00032125]
[1759599782918,1.30379741,121730.0,121720.0,0.00032125]
[1759599783169,0.85830317,121730.0,121720.0,0.00032125]
[1759599783626,1.33723774,121730.0,121720.0,0.00032125]
[1759599783839,0.95901555,121730.0,121720.0,0.00232125]
[1759599785012,1.22181555,121730.0,121720.0,0.00232125]
[1759599785930,1.67059822,121730.0,121720.0,0.00232125]
[1759599788344,1.67059822,121730.0,121720.0,0.00273163]
[1759599791400,1.22181555,121730.0,121720.0,0.00273163]
[1759599791734,1.67059822,121730.0,121720.0,0.00273163]
[1759599792210,1.22181555,121730.0,121720.0,0.00273163]
[1759599792409,1.43887822,121730.0,121720.0,0.00273163]
[1759599792815,1.22185555,121730.0,121720.0,0.00273163]
[1759599793448,0.95905555,121730.0,121720.0,0.00273163]
[1759599794724,0.72729555,121730.0,121720.0,0.00273163]
[1759599794912,0.95905555,121730.0,121720.0,0.00273163]
[1759599796566,0.72729555,121730.0,121720.0,0.00273163]
[1759599796795,0.95905555,121730.0,121720.0,0.00273163]
[1759599798596,1.22185555,121730.0,121720.0,0.00273163]
[1759599802434,0.95905555,121730.0,121720.0,0.00273163]
[1759599804175,1.40783822,121730.0,121720.0,0.00273163]
[1759599804384,1.4641056,121730.0,121720.0,0.00273163]
[1759599805916,1.4641056,121730.0,121720.0,0.00786163]
[1759599805917,0.6914209,121730.0,121720.0,0.00786163]
[1759599806131,0.9231409,121730.0,121720.0,0.00786163]
[1759599806339,0.6914209,121730.0,121720.0,0.00786163]
[1759599806546,0.9231409,121730.0,121720.0,0.00786163]
[1759599810787,0.86058042,121730.0,121720.0,0.00786163]
[1759599811329,0.94479449,121730.0,121720.0,0.00786163]
[1759599813019,0.62886042,121730.0,121720.0,0.00786163]
[1759599814182,0.28886042,121730.0,121720.0,0.00786163]
[1759599816784,0.01128843,121730.0,121720.0,0.17217316]
[1759599817022,0.01128843,121730.0,121720.0,0.00786163]
[1759599817440,0.01128843,121730.0,121720.0,0.17217316]
[1759599827199,0.01128843,121730.0,121720.0,0.00786163]
[1759599827412,0.17558646,121730.0,121720.0,0.23954163]
[1759599828357,0.01128843,121730.0,121720.0,0.23954163]
[1759599829556,0.17558646,121730.0,121720.0,0.23954163]
[1759599831600,0.17558646,121730.0,121720.0,0.00786163]
[1759599831805,0.17558646,121730.0,121720.0,0.23954163]
[1759599837806,0.17558646,121730.0,121720.0,0.00786163]
[1759599838048,0.17558646,121730.0,121720.0,0.23954163]
[1759599842446,0.17558646,121730.0,121720.0,0.00786163]
[1759599842649,0.17558646,121730.0,121720.0,0.23954163]
[1759599849051,0.17558646,121730.0,121720.0,0.40385316]
[1759599849052,0.01128843,121730.0,121720.0,0.40385316]
[1759599849681,0.008,121730.0,121720.0,0.40385316]
[1759599850087,0.02465757,121740.0,121720.0,0.40185316]
[1759599850289,0.27206417,121740.0,121730.0,0.0193898]
[1759599850440,0.27206417,121740.0,121730.0,0.02172497]
[1759599851409,0.27506417,121740.0,121730.0,0.02472497]
[1759599852464,0.27206417,121740.0,121730.0,0.02472497]
[1759599852676,0.27206417,121740.0,121730.0,0.03273426]
[1759599852889,0.28006417,121740.0,121730.0,0.03473426]
[1759599861055,0.28006417,121740.0,121730.0,0.25836497]
[1759599861225,0.28006417,121740.0,121730.0,0.24193517]
[1759599862066,0.28006417,121740.0,121730.0,0.01029517]
[1759599862333,0.28006417,121740.0,121730.0,0.15305517]
[1759599862555,0.28006417,121740.0,121730.0,0.14796517]
[1759599863003,0.28823975,121740.0,121730.0,0.14796517]
[1759599863218,0.28823975,121740.0,121730.0,0.15305517]
[1759599863603,0.28823975,121740.0,121730.0,0.14796517]
[1759599864011,0.28823975,121740.0,121730.0,0.15009517]
[1759599864159,0.28823975,121740.0,121730.0,0.14796517]
[1759599864379,0.28823975,121740.0,121730.0,0.15305517]
[1759599864819,0.28006417,121740.0,121730.0,0.15305517]
[1759599865258,0.28006417,121740.0,121730.0,0.16948497]
[1759599866178,0.28006417,121740.0,121730.0,0.02672497]
[1759599866324,0.28006417,121740.0,121730.0,0.25836497]
[1759599866527,0.28006417,121740.0,121730.0,0.24193517]
[1759599880136,0.11577963,121740.0,121730.0,0.24193517]
[1759599880346,0.03265757,121740.0,121730.0,0.24193517]
[1759599880556,0.19694211,121740.0,121730.0,0.24193517]
[1759599880985,0.28006417,121740.0,121730.0,0.01029517]
[1759599881193,0.28006417,121740.0,121730.0,0.24193517]
[1759599911196,0.11577963,121740.0,121730.0,0.4062332]
[1759599911368,0.008,121740.0,121730.0,0.4062332]
[1759599950200,0.008,121740.0,121730.0,0.43088723]
[1759599968271,0.008,121740.0,121730.0,0.51612723]
[1759599970414,0.008,121740.0,121730.0,0.4914732]
[1759599974763,0.008,121740.0,121730.0,0.1745932]
[1759599974967,0.008,121740.0,121730.0,0.4914732]
[1759599995589,0.008,121740.0,121730.0,0.1745932]
[1759599995994,0.008,121740.0,121730.0,0.4914332]
[1759600002044,0.008,121740.0,121730.0,0.51608613]
[1759600027225,0.008,121740.0,121730.0,0.19924613]
[1759600027434,0.17228454,121740.0,121730.0,0.23664517]
[1759600027692,0.77853713,121740.0,121730.0,0.00520517]
[1759600027891,0.77853713,121740.0,121730.0,0.08908517]
[1759600032624,0.77853713,121740.0,121730.0,0.00520517]
[1759600032890,0.32991326,121740.0,121730.0,0.00520517]
[1759600033095,0.77853713,121740.0,121730.0,0.00520517]
[1759600034729,0.75883919,121740.0,121730.0,0.00520517]
[1759600035476,0.31021532,121740.0,121730.0,0.00520517]
[1759600035686,0.75883919,121740.0,121730.0,0.00520517]
[1759600041025,1.09883919,121740.0,121730.0,0.00520517]
[1759600041706,1.33031919,121740.0,121730.0,0.00520517]
[1759600041939,1.41453326,121740.0,121730.0,0.00520517]
[1759600045933,1.18305326,121740.0,121730.0,0.00520517]
[1759600046162,1.41453326,121740.0,121730.0,0.00520517]
[1759600048361,1.18305326,121740.0,121730.0,0.00520517]
[1759600048531,1.33031919,121740.0,121730.0,0.01022517]
[1759600048769,1.33031919,121740.0,121730.0,0.00520517]
[1759600049507,0.88169532,121740.0,121730.0,0.01022517]
[1759600049946,0.88169532,121740.0,121730.0,0.00520517]
[1759600050395,1.3866315,121740.0,121730.0,0.00520517]
[1759600052631,0.88169532,121740.0,121730.0,0.00520517]
[1759600052865,1.3866315,121740.0,121730.0,0.00520517]
[1759600053320,1.3866315,121740.0,121730.0,0.00736517]
[1759600053541,1.3866315,121740.0,121730.0,0.01038517]
[1759600053765,1.3866315,121740.0,121730.0,0.00736517]
[1759600053995,1.3866315,121740.0,121730.0,0.00520517]
[1759600058602,1.1551515,121740.0,121730.0,0.00520517]
[1759600058812,1.3866315,121740.0,121730.0,0.00520517]
[1759600061061,0.88169532,121740.0,121730.0,0.00520517]
[1759600061264,1.3866315,121740.0,121730.0,0.00520517]
[1759600069871,1.1551515,121740.0,121730.0,0.00520517]
[1759600070106,1.3866315,121740.0,121730.0,0.00520517]
[1759600070341,1.1551515,121740.0,121730.0,0.00520517]
[1759600070511,1.3866315,121740.0,121730.0,0.00520517]
[1759600070714,1.3866315,121740.0,121730.0,0.01038517]
[1759600071014,1.47084557,121740.0,121730.0,0.01038517]
[1759600071244,1.47084557,121740.0,121730.0,0.00520517]
[1759600071559,1.3866315,121740.0,121730.0,0.00520517]
[1759600071824,0.88169532,121740.0,121730.0,0.00520517]
[1759600071999,1.3866315,121740.0,121730.0,0.00520517]
[1759600077256,1.3866315,121740.0,121730.0,0.01038517]
[1759600077257,0.31021532,121740.0,121730.0,0.01038517]
[1759600077486,0.008,121740.0,121730.0,0.1746832]
[1759600077711,0.008,121740.0,121730.0,0.2600832]
[1759600077935,0.008,121740.0,121730.0,0.26807412]
[1759600079050,0.008,121740.0,121730.0,0.49955412]
[1759600082699,0.17228454,121740.0,121730.0,0.18267412]
[1759600082885,0.17228454,121740.0,121730.0,0.49951412]
[1759600083885,0.17228454,121740.0,121730.0,0.18267412]
[1759600084090,0.17228454,121740.0,121730.0,0.24182517]
[1759600084290,0.17228454,121740.0,121730.0,0.09578517]
[1759600084531,0.17228454,121740.0,121730.0,0.32722517]
[1759600085489,0.008,121740.0,121730.0,0.4915232]
[1759600085641,0.17228454,121740.0,121730.0,0.4915232]
[1759600086462,0.17228454,121740.0,121730.0,0.01038517]
[1759600086669,0.83357224,121740.0,121730.0,0.00520517]
[1759600086847,0.83357224,121740.0,121730.0,0.23664517]
[1759600086848,0.32863606,121740.0,121730.0,0.23664517]
[1759600087505,0.32863606,121740.0,121730.0,0.24187517]
[1759600089143,0.32863606,121740.0,121730.0,0.23664517]
[1759600089886,0.83357224,121740.0,121730.0,0.00520517]
[1759600090096,0.86372414,121740.0,121730.0,0.00520517]
[1759600090510,0.88838366,121740.0,121730.0,0.00520517]
[1759600102624,0.88838366,121740.0,121730.0,0.00020517]
[1759600104207,0.8151542,121740.0,121730.0,0.00020517]
[1759600105469,1.32009038,121740.0,121730.0,0.00020517]
[1759600105676,1.66009038,121740.0,121730.0,0.00020517]
[1759600110306,1.09915306,121740.0,121730.0,0.00020517]
[1759600112947,1.33063306,121740.0,121730.0,0.00020517]
[1759600113175,1.41484713,121740.0,121730.0,0.00020517]
[1759600120183,0.50429803,121730.0,121720.0,0.00032125]
[1759600120396,1.03635513,121730.0,121720.0,0.00032125]
[1759600120595,1.26783513,121730.0,121720.0,0.00032125]
[1759600120976,1.29249722,121730.0,121720.0,0.00032125]
[1759600121147,1.37671129,121730.0,121720.0,0.00032125]
[1759600121329,1.38271129,121730.0,121720.0,0.00032125]
[1759600121541,1.39371129,121730.0,121720.0,0.00332125]
[1759600126039,1.39371129,121730.0,121720.0,0.00352645]
[1759600128922,1.16223129,121730.0,121720.0,0.00352645]
[1759600129142,1.39371129,121730.0,121720.0,0.00881645]
[1759600129537,1.39371129,121730.0,121720.0,0.00563645]
[1759600129740,1.39371129,121730.0,121720.0,0.00352645]
[1759600140584,0.94477625,121730.0,121720.0,0.00352645]
[1759600141207,0.94477625,121730.0,121720.0,0.00548645]
[1759600141580,0.94477625,121730.0,121720.0,0.00352645]
[1759600144165,1.42386319,121730.0,121720.0,0.00352645]
[1759600144359,0.97492815,121730.0,121720.0,0.00352645]
[1759600144626,0.97492815,121730.0,121720.0,0.00845645]
[1759600144851,0.74344815,121730.0,121720.0,0.00352645]
[1759600145112,0.97492815,121730.0,121720.0,0.00352645]
[1759600145725,0.74344815,121730.0,121720.0,0.00352645]
[1759600145921,0.97492815,121730.0,121720.0,0.00352645]
[1759600148367,0.74344815,121730.0,121720.0,0.00352645]
[1759600148560,0.97492815,121730.0,121720.0,0.00352645]
[1759600157855,0.97072515,121730.0,121720.0,0.00352645]
[1759600163793,1.41966019,121730.0,121720.0,0.00352645]
[1759600172015,0.97072515,121730.0,121720.0,0.00352645]
[1759600172247,1.41966019,121730.0,121720.0,0.00352645]
[1759600172480,1.47578483,121730.0,121720.0,0.00352645]
[1759600182006,0.97072515,121730.0,121720.0,0.00352645]
[1759600182839,1.47578483,121730.0,121720.0,0.00352645]
[1759600184614,1.24430483,121730.0,121720.0,0.00352645]
[1759600184823,1.47578483,121730.0,121720.0,0.00352645]
[1759600187010,1.39157076,121730.0,121720.0,0.00352645]
[1759600192217,0.88651108,121730.0,121720.0,0.00866645]
[1759600192440,1.39157076,121730.0,121720.0,0.00866645]
[1759600192724,1.39157076,121730.0,121720.0,0.00352645]
[1759600193592,0.88651108,121730.0,121720.0,0.00565645]
[1759600193791,1.39157076,121730.0,121720.0,0.00866645]
[1759600194435,1.39157076,121730.0,121720.0,0.00565645]
[1759600194651,1.39157076,121730.0,121720.0,0.00352645]
[1759600194879,1.41722619,121730.0,121720.0,0.00866645]
[1759600195436,1.41722619,121730.0,121720.0,0.00352645]
[1759600195644,1.39157076,121730.0,121720.0,0.00352645]
[1759600199241,0.88651108,121730.0,121720.0,0.00352645]
[1759600199450,1.16009076,121730.0,121720.0,0.00352645]
[1759600199667,1.39157076,121730.0,121720.0,0.00352645]
[1759600199881,1.38746976,121730.0,121720.0,0.00352645]
[1759600202097,1.15598976,121730.0,121720.0,0.00352645]
[1759600202302,1.38746976,121730.0,121720.0,0.00352645]
[1759600202520,1.38746976,121730.0,121720.0,0.00547645]
[1759600202919,1.38746976,121730.0,121720.0,0.00352645]
[1759600203122,1.47168383,121730.0,121720.0,0.00352645]
[1759600208606,0.96662415,121730.0,121720.0,0.00352645]
[1759600208803,1.47168383,121730.0,121720.0,0.00352645]
[1759600213755,1.38746976,121730.0,121720.0,0.00352645]
[1759600215325,1.38746976,121730.0,121720.0,0.00851645]
[1759600215752,1.38746976,121730.0,121720.0,0.00352645]
[1759600234294,1.3313447,121730.0,121720.0,0.00352645]
[1759600236306,1.0998647,121730.0,121720.0,0.00352645]
[1759600236499,1.3313447,121730.0,121720.0,0.00352645]
[1759600236699,1.41555877,121730.0,121720.0,0.00352645]
[1759600236903,1.18407877,121730.0,121720.0,0.00352645]
[1759600237114,1.41555877,121730.0,121720.0,0.00352645]
[1759600240455,0.96662415,121730.0,121720.0,0.00352645]
[1759600240681,1.41555877,121730.0,121720.0,0.00352645]
[1759600240888,1.3313447,121730.0,121720.0,0.00352645]
[1759600248570,0.88241008,121730.0,121720.0,0.00352645]
[1759600248770,1.3313447,121730.0,121720.0,0.00352645]
[1759600254735,0.88241008,121730.0,121720.0,0.00352645]
[1759600254973,0.96662415,121730.0,121720.0,0.00352645]
[1759600260228,0.73514415,121730.0,121720.0,0.00352645]
[1759600260468,0.96658415,121730.0,121720.0,0.00352645]
[1759600261388,0.73514415,121730.0,121720.0,0.00352645]
[1759600261585,1.41551877,121730.0,121720.0,0.00352645]
[1759600262011,1.67831877,121730.0,121720.0,0.00352645]
[1759600267980,1.41551877,121730.0,121720.0,0.00352645]
[1759600286442,0.96658415,121730.0,121720.0,0.00352645]
[1759600286640,1.41551877,121730.0,121720.0,0.00352645]
[1759600294409,1.47169043,121730.0,121720.0,0.00352645]
[1759600301082,1.47165043,121730.0,121720.0,0.00352645]
[1759600310579,1.47165043,121730.0,121710.0,0.0002]
[1759600310796,1.35409177,121720.0,121710.0,0.00034812]
[1759600311071,1.43830584,121720.0,121710.0,0.00034812]
[1759600311481,1.44466584,121720.0,121710.0,0.00055335]
[1759600311888,1.44466584,121720.0,121710.0,0.00355335]
[1759600312068,1.44766584,121720.0,121710.0,0.00355335]
[1759600312276,1.44766584,121720.0,121710.0,0.00055335]
[1759600312703,1.45566584,121720.0,121710.0,0.00355335]
[1759600323321,1.44766584,121720.0,121710.0,0.00055335]
[1759600323536,1.44466584,121720.0,121710.0,0.00055335]
[1759600323780,1.44466584,121720.0,121710.0,0.00355335]
[1759600323781,1.46766584,121720.0,121710.0,0.00355335]